Workbook

Sheet Aussenlärm
D2: Schallschutz SIA-Norm 181 (2020) | AY2: S | BG2: Schallschutznachweis Aussenlärm
V3: Projektkontrolle
A5: Gemeinde: | BC5: Parz. Nr.: | CA5: Geb. Nr.:
A6: Bauvorhaben:
A9: Aussenlärmsituation (Beurteilungspegel)
D10: Strassenlärm: | AF10: dB (Tag) | BA10: dB (Nacht)
D11: Eisenbahnlärm: | AF11: dB (Tag) | BA11: dB (Nacht)
D12: Fluglärm: | AF12: dB (6-22 h) | BA12: dB (22-23 h)
D13: andere:
D14: keine spezifische Lärmquelle vorhanden
A17: Schutz gegen Aussenlärm | BJ17: Siehe beiliegenden Schallschutznachweis
A19: Situation
A20: Empfangsraum: | Q20: Bezeichnung
Q21: Nr. / Geschoss
A22: Massgebende Lärmbelastung | AK22: Lr,Tag = | AW22: Lr,Nacht = | BI22: Lr,Tag = | BU22: Lr,Nacht = | CG22: Lr,Tag = | CS22: Lr,Nacht =
A23: Lärmempfindlichkeit
A24: Massgebende Anforderung | AK24: De = | AZ24: dB | BI24: De = | BX24: dB | CG24: De = | CV24: dB
A25: Trennbauteile | AK25: S [m2] | AS25: R'45°,w | BA25: Ctr [dB] | BI25: S [m2] | BQ25: R'45°,w | BY25: Ctr [dB] | CG25: S [m2] | CO25: R'45°,w | CW25: Ctr [dB]
A34: Sres und (R'45°,w + Ctr)res | AK34: =SUM(AK26:AR33) -> 0.0 | AS34: =IF(AK34>0,ROUND(-10*LOG( (AK26*10^((ROUND(-AS26-BA26,1))/10) +AK27*10^((ROUND(-AS27-BA27,1))/10) +AK28*10^((ROUND(-AS28-BA28,1))/10) +AK29*10^((ROUND(-AS29-BA29,1))/10) +AK30*10^((ROUND(-AS30-BA30,1))/10) +AK31*10^((ROUND(-AS31-BA31,1))/10) +AK32*10^((ROUND(-AS32-BA32,1))/10) +AK33*10^((ROUND(-AS33-BA33,1))/10) )/AK34),1),0) -> 0.0 | BI34: =SUM(BI26:BP33) -> 0.0 | BQ34: =IF(BI34>0,ROUND(-10*LOG( (BI26*10^((ROUND(-BQ26-BY26,1))/10) +BI27*10^((ROUND(-BQ27-BY27,1))/10) +BI28*10^((ROUND(-BQ28-BY28,1))/10) +BI29*10^((ROUND(-BQ29-BY29,1))/10) +BI30*10^((ROUND(-BQ30-BY30,1))/10) +BI31*10^((ROUND(-BQ31-BY31,1))/10) +BI32*10^((ROUND(-BQ32-BY32,1))/10) +BI33*10^((ROUND(-BQ33-BY33,1))/10) )/BI34),1),0) -> 0.0 | CG34: =SUM(CG26:CN33) -> 0.0 | CO34: =IF(CG34>0,ROUND(-10*LOG( (CG26*10^((ROUND(-CO26-CW26,1))/10) +CG27*10^((ROUND(-CO27-CW27,1))/10) +CG28*10^((ROUND(-CO28-CW28,1))/10) +CG29*10^((ROUND(-CO29-CW29,1))/10) +CG30*10^((ROUND(-CO30-CW30,1))/10) +CG31*10^((ROUND(-CO31-CW31,1))/10) +CG32*10^((ROUND(-CO32-CW32,1))/10) +CG33*10^((ROUND(-CO33-CW33,1))/10) )/CG34),1),0) -> 0.0
A35: Volumen Empfangsraum | AK35: V = | BA35: m3 | BI35: V = | BY35: m3 | CG35: V = | CW35: m3
A36: Projektierungszuschlag Kp | AK36: Kp = | AS36: 2.0 | BA36: dB | BI36: Kp = | BQ36: 2.0 | BY36: dB | CG36: Kp = | CO36: 2.0 | CW36: dB
A37: Ermittelter Schallschutz | AK37: De,d = | AS37: =IF(AND(AK34>0,AS34>0,AS35>0),ROUND(AS34+10*LOG(AS35/AK34)-4.9-AS36,1),0) -> 0.0 | BB37: dB | BI37: De,d = | BQ37: =IF(AND(BI34>0,BQ34>0,BQ35>0),ROUND(BQ34+10*LOG(BQ35/BI34)-4.9-BQ36,1),0) -> 0.0 | BZ37: dB | CG37: De,d = | CO37: =IF(AND(CG34>0,CO34>0,CO35>0),ROUND(CO34+10*LOG(CO35/CG34)-4.9-CO36,1),0) -> 0.0 | CX37: dB
A38: Erfüllt | AS38: =IF(AND(AT24>0,AS37>0),IF(AND(AT24<=AS37,AS34>=AT24-5),"Ja","Nein"),"") ->  | BQ38: =IF(AND(BR24>0,BQ37>0),IF(AND(BR24<=BQ37,BQ34>=BR24-5),"Ja","Nein"),"") ->  | CO38: =IF(AND(CP24>0,CO37>0),IF(AND(CP24<=CO37,CO34>=CP24-5),"Ja","Nein"),"") -> 
A40: Unterschriften:
A41: Das Projekt erfüllt Anforderungen der SIA-Norm 181:2020 gemäss Art. 32 LSV (Aussenlärm, Innenlärm, gebäudetech-
A42: nische Anlagen): | CR42: ja | CY42: nein
X44: Nachweis erarbeitet durch: | BP44: Private Kontrolle / Nachweisprüfung: Die Vollständigkeit und die Richtigkeit bescheinigt:
A45: Name und Adresse, bzw. Firmenstempel:
A48: Sachbearbeiter/in, Tel.:
A49: Ort, Datum, Unterschrift:
BP50: Ausführungskontrolle: | CP50: gleiche Person
BP51: oder :
A53: Formular S Seite | O53: 1 | R53: von | V53: 3 | AT53: Formular S | CF53: Version vom 30. November 2020

Sheet Innenlärm
D2: Schallschutz SIA-Norm 181 (2020) | AY2: S | BG2: Schallschutznachweis Innenlärm
V3: Projektkontrolle
E5: Nur eine Nutzungseinheit: Schallschutznachweis für Innenlärm nicht notwendig
A8: Luftschall | BJ8: Siehe beiliegenden Schallschutznachweis
A10: Situation
A11: Trennbauteil
A12: Senderaum: | Q12: Bezeichnung
Q13: Nr. / Geschoss
A14: Empfangsraum: | Q14: Bezeichnung
Q15: Nr. / Geschoss
A16: Grad der Störung
A17: Lärmempfindlichkeit
A18: Abschlusstüre Ziffer 3.2.2.1 | AN18: R'W + C ≥ | BD18: dB | BI18: 10 | BL18: R'W + C ≥ | CB18: dB | CG18: 10 | CJ18: R'W + C ≥ | CZ18: dB
A19: Tieffreq. Emi. nachts Ziffer 3.2.2.2 | AN19: tieffreq. in der Nacht | BI19: 10 | BL19: tieffreq. in der Nacht | CG19: 10 | CJ19: tieffreq. in der Nacht
A20: Massgebende Anforderung | AK20: Di = | AZ20: dB | BI20: Di = | BX20: dB | CG20: Di = | CV20: dB
A21: Trennbauteile | AK21: S [m2] | AS21: R'w [dB] | BA21: C [dB] | BI21: S [m2] | BQ21: R'w [dB] | BY21: C [dB] | CG21: S [m2] | CO21: R'w [dB] | CW21: C [dB]
A30: Sres und (R'w + C)res | AK30: =SUM(AK22:AR29) -> 0.0 | AS30: =IF(AK30>0,ROUND(-10*LOG( (AK22*10^((ROUND(-AS22-BA22,1))/10) +AK23*10^((ROUND(-AS23-BA23,1))/10) +AK24*10^((ROUND(-AS24-BA24,1))/10) +AK25*10^((ROUND(-AS25-BA25,1))/10) +AK26*10^((ROUND(-AS26-BA26,1))/10) +AK27*10^((ROUND(-AS27-BA27,1))/10) +AK28*10^((ROUND(-AS28-BA28,1))/10) +AK29*10^((ROUND(-AS29-BA29,1))/10) )/AK30),1),0) -> 0.0 | BI30: =SUM(BI22:BP29) -> 0.0 | BQ30: =IF(BI30>0,ROUND(-10*LOG( (BI22*10^((ROUND(-BQ22-BY22,1))/10) +BI23*10^((ROUND(-BQ23-BY23,1))/10) +BI24*10^((ROUND(-BQ24-BY24,1))/10) +BI25*10^((ROUND(-BQ25-BY25,1))/10) +BI26*10^((ROUND(-BQ26-BY26,1))/10) +BI27*10^((ROUND(-BQ27-BY27,1))/10) +BI28*10^((ROUND(-BQ28-BY28,1))/10) +BI29*10^((ROUND(-BQ29-BY29,1))/10) )/BI30),1),0) -> 0.0 | CG30: =SUM(CG22:CN29) -> 0.0 | CO30: =IF(CG30>0,ROUND(-10*LOG( (CG22*10^((ROUND(-CO22-CW22,1))/10) +CG23*10^((ROUND(-CO23-CW23,1))/10) +CG24*10^((ROUND(-CO24-CW24,1))/10) +CG25*10^((ROUND(-CO25-CW25,1))/10) +CG26*10^((ROUND(-CO26-CW26,1))/10) +CG27*10^((ROUND(-CO27-CW27,1))/10) +CG28*10^((ROUND(-CO28-CW28,1))/10) +CG29*10^((ROUND(-CO29-CW29,1))/10) )/CG30),1),0) -> 0.0
A31: Volumen Empfangsraum | AK31: V = | BA31: m3 | BI31: V = | BY31: m3 | CG31: V = | CW31: m3
A32: Projektierungszuschlag Kp | AK32: Kp = | AS32: 2.0 | BA32: dB | BI32: Kp = | BQ32: 2.0 | BY32: dB | CG32: Kp = | CO32: 2.0 | CW32: dB
A33: Ermittelter Schallschutz | AK33: Di,d = | AS33: =IF(AND(AK30>0,AS30>0,AS31>0),ROUND(AS30+10*LOG(AS31/AK30)-4.9-AS32,1),0) -> 0.0 | BB33: dB | BI33: Di,d = | BQ33: =IF(AND(BI30>0,BQ30>0,BQ31>0),ROUND(BQ30+10*LOG(BQ31/BI30)-4.9-BQ32,1),0) -> 0.0 | BZ33: dB | CG33: Di,d = | CO33: =IF(AND(CG30>0,CO30>0,CO31>0),ROUND(CO30+10*LOG(CO31/CG30)-4.9-CO32,1),0) -> 0.0 | CX33: dB
A34: Erfüllt | AS34: =IF(AND(AT20>0,AS33>0), IF(AND(AT20<=AS33,IF($AY$18>0, AND(IF(AS22>0,$AS$22+$BA$22>=$AY$18, IF(AS23>0,$AS$23+$BA$23>=$AY$18, IF(AS24>0,$AS$24+$BA$24>=$AY$18, IF(AS25>0,$AS$25+$BA$25>=$AY$18, IF(AS26>0,$AS$26+$BA$26>=$AY$18, IF(AS27>0,$AS$27+$BA$27>=$AY$18, IF(AS28>0,$AS$28+$BA$28>=$AY$18, IF(AS29>0,$AS$29+$BA$29>=$AY$18,TRUE)))))))), IF(AS23>0,$AS$23+$BA$23>=$AY$18,TRUE), IF(AS24>0,$AS$24+$BA$24>=$AY$18,TRUE), IF(AS25>0,$AS$25+$BA$25>=$AY$18,TRUE), IF(AS26>0,$AS$26+$BA$26>=$AY$18,TRUE), IF(AS27>0,$AS$27+$BA$27>=$AY$18,TRUE), IF(AS28>0,$AS$28+$BA$28>=$AY$18,TRUE), IF(AS29>0,$AS$29+$BA$29>=$AY$18,TRUE)), $AT$20-5<=$AS$30)),"Ja","Nein"),"") ->  | BQ34: =IF(AND(BR20>0,BQ33>0), IF(AND(BR20<=BQ33,IF(BW18>0, AND(IF(BQ22>0,BQ22+BY22>=BW18, IF(BQ23>0,BQ23+BY23>=BW18, IF(BQ24>0,BQ24+BY24>=BW18, IF(BQ25>0,BQ25+BY25>=BW18, IF(BQ26>0,BQ26+BY26>=BW18, IF(BQ27>0,BQ27+BY27>=BW18, IF(BQ28>0,BQ28+BY28>=BW18, IF(BQ29>0,BQ29+BY29>=BW18,TRUE)))))))), IF(BQ23>0,BQ23+BY23>=BW18,TRUE), IF(BQ24>0,BQ24+BY24>=BW18,TRUE), IF(BQ25>0,BQ25+BY25>=BW18,TRUE), IF(BQ26>0,BQ26+BY26>=BW18,TRUE), IF(BQ27>0,BQ27+BY27>=BW18,TRUE), IF(BQ28>0,BQ28+BY28>=BW18,TRUE), IF(BQ29>0,BQ29+BY29>=BW18,TRUE)), BR20-5<=BQ30)),"Ja","Nein"),"") ->  | CO34: =IF(AND(CP20>0,CO33>0), IF(AND(CP20<=CO33,IF(CU18>0, AND(IF(CO22>0,CO22+CW22>=CU18, IF(CO23>0,CO23+CW23>=CU18, IF(CO24>0,CO24+CW24>=CU18, IF(CO25>0,CO25+CW25>=CU18, IF(CO26>0,CO26+CW26>=CU18, IF(CO27>0,CO27+CW27>=CU18, IF(CO28>0,CO28+CW28>=CU18, IF(CO29>0,CO29+CW29>=CU18,TRUE)))))))), IF(CO23>0,CO23+CW23>=CU18,TRUE), IF(CO24>0,CO24+CW24>=CU18,TRUE), IF(CO25>0,CO25+CW25>=CU18,TRUE), IF(CO26>0,CO26+CW26>=CU18,TRUE), IF(CO27>0,CO27+CW27>=CU18,TRUE), IF(CO28>0,CO28+CW28>=CU18,TRUE), IF(CO29>0,CO29+CW29>=CU18,TRUE)), CP20-5<=CO30)),"Ja","Nein"),"") -> 
A36: Trittschall | BJ36: Siehe beiliegenden Schallschutznachweis
A38: Situation
A39: Trennbauteil
A40: Senderaum: | Q40: Bezeichnung
Q41: Nr. / Geschoss
A42: Empfangsraum: | Q42: Bezeichnung
Q43: Nr. / Geschoss
A44: Grad der Störung
A45: Lärmempfindlichkeit
A46: Spezielle Fälle 3.3.2 ff | AN46: Umbau | AZ46: Balkon | BL46: Umbau | BX46: Balkon | CJ46: Umbau | CV46: Balkon
A47: Massgebende Anforderung | AK47: L' = | AZ47: dB | BI47: L' = | BX47: dB | CG47: L' = | CV47: dB
A49: Trennbauteile | AK49: d [cm] | AQ49: L'n,w | AW49: DLW | BC49: CI | BI49: d [cm] | BO49: L'n,w | BU49: DLW | CA49: CI | CG49: d [cm] | CM49: L'n,w | CS49: DLW | CY49: CI
AW50: ----- | BU50: ----- | CS50: -----
BI52: 0.0 | CG52: 0.0
AQ53: 0.0 | BO53: 0.0 | CM53: 0.0
AK54: 0.0 | BI54: 0.0 | CG54: 0.0
AQ55: 0.0 | BO55: 0.0 | CM55: 0.0
BO56: 0.0 | CM56: 0.0
A57: Wert für gesamten Aufbau | AK57: L'n,w + CI = | AW57: =ROUND(SUM(AQ50:AV56) + IF(BC50>0, BC50,0) + IF(BC51>0, BC51,0) + IF(BC52>0, BC52,0) + IF(BC53>0, BC53,0) + IF(BC54>0, BC54,0) + IF(BC55>0, BC55,0) + IF(BC56>0, BC56,0) - SUM(AW51:BB56),1) -> 0.0 | BD57: dB | BI57: L'n,w + CI = | BU57: =ROUND(SUM(BO50:BT56) + IF(CA50>0, CA50,0) + IF(CA51>0, CA51,0) + IF(CA52>0, CA52,0) + IF(CA53>0, CA53,0) + IF(CA54>0, CA54,0) + IF(CA55>0, CA55,0) + IF(CA56>0, CA56,0) - SUM(BU51:BZ56),1) -> 0.0 | CB57: dB | CG57: L'n,w + CI = | CS57: =ROUND(SUM(CM50:CR56) + IF(CY50>0, CY50,0) + IF(CY51>0, CY51,0) + IF(CY52>0, CY52,0) + IF(CY53>0, CY53,0) + IF(CY54>0, CY54,0) + IF(CY55>0, CY55,0) + IF(CY56>0, CY56,0) - SUM(CS51:CX56),1) -> 0.0 | CZ57: dB
A58: Volumen Empfangsraum | AK58: V = | BB58: m3 | BI58: V = | BZ58: m3 | CG58: V = | CX58: m3
A59: Projektierungszuschlag Kp | AK59: Kp = | AS59: 5.0 | BB59: dB | BI59: Kp = | BQ59: 5.0 | BZ59: dB | CG59: Kp = | CO59: 5.0 | CX59: dB
A60: Ermittelter Schallpegel | AK60: L'd = | AS60: =IF(AND(AW57>0,AS58>0),ROUND((AW57-10*LOG(AS58)+14.9+AS59),1),0) -> 0.0 | BB60: dB | BI60: L'd = | BQ60: =IF(AND(BU57>0,BQ58>0),ROUND(BU57-10*LOG(BQ58)+14.9+BQ59,1),0) -> 0.0 | BZ60: dB | CG60: L'd = | CO60: =IF(AND(CS57>0,CO58>0),ROUND(CS57-10*LOG(CO58)+14.9+CO59,1),0) -> 0.0 | CX60: dB
A61: Erfüllt | AS61: =IF(AND(AT47>0,AW57>0,AS58>0),IF(AT47<AS60,"Nein","Ja"),"") ->  | BQ61: =IF(AND(BR47>0,BU57>0,BQ58>0),IF(BR47<BQ60,"Nein","Ja"),"") ->  | CO61: =IF(AND(CP47>0,CS57>0,CO58>0),IF(CP47<CO60,"Nein","Ja"),"") -> 
A62: Formular S Seite | O62: 2 | R62: von | V62: 3 | AT62: Formular S | CF62: Version vom 30. November 2020

Sheet Konstruktion
D2: Schallschutz SIA-Norm 181 (2020) | AY2: S | BG2: Schallschutznachweis Konstruktionsbeschrieb
V3: Projektkontrolle
A6: Zusätzliche Angaben zu den Bauteilen (fakultativ).
A8: Luftschall Konstruktionsbeschrieb | BJ8: Siehe beiliegender Produktebeschrieb
A10: Nr | F10: Bauteil | AF10: Konstruktionsbeschrieb | CA10: Rw [dB] | CG10: KF [dB] | CM10: R'w [dB] | CS10: Ctr [dB] | CY10: C [dB]
A31: Trittschall Konstruktionsbeschrieb | BJ31: Siehe beiliegender Produktebeschrieb
A33: Nr | F33: Bauteil | AF33: Konstruktionsbeschrieb | CA33: Ln,w [dB] | CG33: KF [dB] | CM33: L'n,w [dB] | CS33: DLW [dB] | CY33: CI [dB]
A54: Bemerkungen
A61: Formular S Seite | O61: 3 | R61: von | V61: 3 | AT61: Formular S | CF61: Version vom 30. November 2020

Sheet Kurzinformation
D2: Schallschutz SIA-Norm 181 (2020) | AY2: S | BG2: Schallschutzformular Kurzinformation
V3: Projektkontrolle
A6: Hinweise zum Formular S "Schallschutz SIA-Norm 181 (2020), Projektkontrolle"
A7: Allgemeines
A8: Das Formular berechnet die Schallschutzwerte für Aussenlärm sowie Innenlärm Luftschall und Trittschall zwischen Nutzungseinheiten. Die Fachstelle Lärmschutz haftet nicht für Berechnungsfehler.
A9: Das Formular Schallschutznachweis sowie weitere Informationen sind unter www.zh.ch/schallschutz (-> Schallschutz – Gebäudeaussenhülle) zu finden.
A10: Projektierungszuschlag / Blatt Konstruktion
A11: Es liegt in der Verantwortung des Anwenders einen angemessenen Projektierungszuschlag KP für die Unsicherheiten einzusetzen, damit die Anforderungen bei Kontrollmessungen mit hoher Wahrscheinlichkeit eingehalten werden können (siehe Ziffer 1.1.1.31). Der gemessene Nachweis gilt ohne Toleranzen.
A12: Im Tabellenblatt «Konstruktion» können detaillierte Angaben über die gewählten Bauteile, vorhandene Messberichte sowie die Annahmen zur Schätzung fehlender Angaben (z.B. Flankenübertragung) dokumentiert werden.
A13: Aussenlärm
A14: Der Projektierungswert De,d unter Berücksichtigung des Projektierungszuschlag KP muss grösser oder gleich wie der Anforderungswert De sein. Die gesetzlichen Anforderungen (Art. 32 LSV) an den De-Wert sind auf https://www.bauen-im-laerm.ch/schallschutz/anforderungswerte/ publiziert und weichen von der Norm SIA 181:2020 ab.
A15: De,d = De,tot - KP ≥ De
A16: Zusätzlich gilt:
A17: (R’45°,w + Ctr)res ≥ De – 5
A18: Spezielle Fälle (Auswahl):
A19: - Bei ausschliesslicher Tagesnutzung nach Ziffer 3.1.2.2 gilt nur der Tageswert
A20: Innenlärm
A21: Weist das Bauvorhaben nur eine Nutzungseinheit auf, so kann auf einen Schallschutznachweis für den Teil Innenlärm verzichtet werden.
A22: Innenlärm Luftschall
A23: Der Projektierungswert Di,d unter Berücksichtigung des Projektierungszuschlag KP muss grösser oder gleich wie der Anforderungswert Di sein.
A24: Di,d = Di,tot - KP ≥ Di
A25: Zusätzlich gilt:
A26: (R’w + C)res ≥ Di - 5
A27: Spezielle Fälle:
A28: - Für Räume mit Abschlusstüren gegen Erschliessungszonen gilt ein um 5 dB bzw. 10 dB reduzierter Wert gegenüber der Tabelle 3. Zusätzlich gilt die Anforderung an Türe und weitere Trennbauteile von R’w + C ≥ 37 bzw. 32 dB (siehe Ziffer 3.2.2.1). Da das Bau-Schalldämm-Mass des massgebenden Bauteils (Türe) verbindlich festgehalten wird, kann bei der Berechnung des Anforderungswertes Di auf den Projektierungszuschlag KP verzichtet werden.
A29: - Beim Nachweis für erheblich tieffrequente Emissionen in der Nacht nach Ziffer 3.2.2.2 gelten sinngemäss die Grössen Ctr,50-3150 und Di50.
A30: Innenlärm Trittschall
A31: Der Projektierungswert L'd im Empfangsraum unter Berücksichtigung des Projektierungszuschlag KP muss kleiner oder gleich wie der Anforderungswert L' sein.
A32: L'd = L'tot + KP ≤ L'
A33: Der Spektrum-Anpassungswert CI für Trittschall darf nicht negativ sein (siehe Ziffer 3.3.3.2).
A34: Spezielle Fälle (Auswahl):
A35: - Umbauten und Umnutzungen nach Ziffer 3.3.2.1
A36: - Balkone nach Ziffer 3.3.2.2
A37: - Duschen nach Ziffer 3.3.2.3
A38: - Intensiv genutzte begehbare Konstruktionen nach Ziffer 3.3.2.5 müssen zusätzlich die Anforderungen gemäss Ziffer 3.4 einhalten
A39: Schutz gegenüber Geräuschen gebäudetechnischer Anlagen und fester Einrichtungen
A40: Die Anforderungen müssen erfüllt werden, auch wenn sie in der Projektierung nicht in diesem Formular vorgerechnet werden müssen.

Sheet Beispiele
D2: Schallschutz SIA-Norm 181 (2020) | AY2: S | BG2: Schallschutznachweis Aussenlärm
V3: Projektkontrolle
A5: Gemeinde: | O5: Zürich | BC5: Parz. Nr.: | BN5: AA1702 | CA5: Geb. Nr.:
A6: Bauvorhaben: | O6: Ersatzneubau
A9: Aussenlärmsituation (Beurteilungspegel)
D10: Strassenlärm: | Z10: 61 | AF10: dB (Tag) | AU10: 58 | BA10: dB (Nacht) | BO10: Maximaler Pegel auf der Nordseite
D11: Eisenbahnlärm: | AF11: dB (Tag) | BA11: dB (Nacht)
D12: Fluglärm: | AF12: dB (6-22 h) | BA12: dB (22-23 h)
D13: andere:
D14: keine spezifische Lärmquelle vorhanden
A17: Schutz gegen Aussenlärm | BJ17: Siehe beiliegenden Schallschutznachweis
A19: Situation | AK19: Situation 1 | BI19: Situation 2 | CG19: Situation 3
A20: Empfangsraum: | Q20: Bezeichnung | AK20: Wohnzimmer | BI20: Schlafzimmer | CG20: Schlafzimmer
Q21: Nr. / Geschoss | AK21: 105 / EG | BI21: 107 / EG | CG21: 109 / EG
A22: Massgebende Lärmbelastung | AK22: Lr,Tag = | AS22: 61 | AW22: Lr,Nacht = | BE22: 58 | BI22: Lr,Tag = | BQ22: 61 | BU22: Lr,Nacht = | CC22: 58 | CG22: Lr,Tag = | CO22: 54 | CS22: Lr,Nacht = | DA22: 51
A23: Lärmempfindlichkeit | AK23: mittel | BI23: mittel | CG23: mittel
A24: Massgebende Anforderung | AK24: De = | AT24: 36 | AZ24: dB | BI24: De = | BR24: 36 | BX24: dB | CG24: De = | CP24: 27 | CV24: dB
A25: Trennbauteile | AK25: S [m2] | AS25: R'45°,w | BA25: Ctr [dB] | BI25: S [m2] | BQ25: R'45°,w | BY25: Ctr [dB] | CG25: S [m2] | CO25: R'45°,w | CW25: Ctr [dB]
A26: BT1 AW 20 cm Beton + MW | AK26: 23.5 | AS26: 57.0 | BA26: -4.0 | BI26: 16.5 | BQ26: 57.0 | BY26: -4.0 | CG26: 17.2 | CO26: 57.0 | CW26: -4.0
A27: BT2 Fenster Nord 2fach IV | AK27: 11.2 | AS27: 40.0 | BA27: -5.0 | BI27: 8.1 | BQ27: 40.0 | BY27: -5.0
A28: BT3 Fenster Süd 2fach IV | CG28: 8.1 | CO28: 30.0 | CW28: -5.0
A34: Sres und (R'45°,w + Ctr)res | AK34: =SUM(AK26:AR33) -> 34.7 | AS34: =IF(AK34>0,ROUND(-10*LOG( (AK26*10^((ROUND(-AS26-BA26,1))/10) +AK27*10^((ROUND(-AS27-BA27,1))/10) +AK28*10^((ROUND(-AS28-BA28,1))/10) +AK29*10^((ROUND(-AS29-BA29,1))/10) +AK30*10^((ROUND(-AS30-BA30,1))/10) +AK31*10^((ROUND(-AS31-BA31,1))/10) +AK32*10^((ROUND(-AS32-BA32,1))/10) +AK33*10^((ROUND(-AS33-BA33,1))/10) )/AK34),1),0) -> 39.8 | BI34: =SUM(BI26:BP33) -> 24.6 | BQ34: =IF(BI34>0,ROUND(-10*LOG( (BI26*10^((ROUND(-BQ26-BY26,1))/10) +BI27*10^((ROUND(-BQ27-BY27,1))/10) +BI28*10^((ROUND(-BQ28-BY28,1))/10) +BI29*10^((ROUND(-BQ29-BY29,1))/10) +BI30*10^((ROUND(-BQ30-BY30,1))/10) +BI31*10^((ROUND(-BQ31-BY31,1))/10) +BI32*10^((ROUND(-BQ32-BY32,1))/10) +BI33*10^((ROUND(-BQ33-BY33,1))/10) )/BI34),1),0) -> 39.7 | CG34: =SUM(CG26:CN33) -> 25.3 | CO34: =IF(CG34>0,ROUND(-10*LOG( (CG26*10^((ROUND(-CO26-CW26,1))/10) +CG27*10^((ROUND(-CO27-CW27,1))/10) +CG28*10^((ROUND(-CO28-CW28,1))/10) +CG29*10^((ROUND(-CO29-CW29,1))/10) +CG30*10^((ROUND(-CO30-CW30,1))/10) +CG31*10^((ROUND(-CO31-CW31,1))/10) +CG32*10^((ROUND(-CO32-CW32,1))/10) +CG33*10^((ROUND(-CO33-CW33,1))/10) )/CG34),1),0) -> 29.9
A35: Volumen Empfangsraum | AK35: V = | AS35: 78.9 | BA35: m3 | BI35: V = | BQ35: 52.6 | BY35: m3 | CG35: V = | CO35: 66.4 | CW35: m3
A36: Projektierungszuschlag Kp | AK36: Kp = | AS36: 2.0 | BA36: dB | BI36: Kp = | BQ36: 2.0 | BY36: dB | CG36: Kp = | CO36: 2.0 | CW36: dB
A37: Ermittelter Schallschutz | AK37: De,d = | AS37: =IF(AND(AK34>0,AS34>0,AS35>0),ROUND(AS34+10*LOG(AS35/AK34)-4.9-AS36,1),0) -> 36.5 | BB37: dB | BI37: De,d = | BQ37: =IF(AND(BI34>0,BQ34>0,BQ35>0),ROUND(BQ34+10*LOG(BQ35/BI34)-4.9-BQ36,1),0) -> 36.1 | BZ37: dB | CG37: De,d = | CO37: =IF(AND(CG34>0,CO34>0,CO35>0),ROUND(CO34+10*LOG(CO35/CG34)-4.9-CO36,1),0) -> 27.2 | CX37: dB
A38: Erfüllt | AS38: =IF(AND(AT24>0,AS37>0),IF(AND(AT24<=AS37,AS34>=AT24-5),"Ja","Nein"),"") -> Ja | BQ38: =IF(AND(BR24>0,BQ37>0),IF(AND(BR24<=BQ37,BQ34>=BR24-5),"Ja","Nein"),"") -> Ja | CO38: =IF(AND(CP24>0,CO37>0),IF(AND(CP24<=CO37,CO34>=CP24-5),"Ja","Nein"),"") -> Ja
A40: Unterschriften:
A41: Das Projekt erfüllt Anforderungen der SIA-Norm 181:2020 gemäss Art. 32 LSV (Aussenlärm, Innenlärm, gebäudetech-
A42: nische Anlagen, Schallschutz gegenüber Musiklokalen): | CR42: ja | CY42: nein
X44: Nachweis erarbeitet durch: | BP44: Private Kontrolle / Nachweisprüfung: Die Vollständigkeit und die Richtigkeit bescheinigt:
A45: Name und Adresse, bzw. Firmenstempel:
A48: Sachbearbeiter/in, Tel.:
A49: Ort, Datum, Unterschrift:
BP50: Ausführungskontrolle: | CP50: gleiche Person
BP51: oder :
A53: Formular S Seite | O53: 1 | R53: von | V53: 3 | AT53: Formular S | CF53: Version vom 30. November 2020
D55: Schallschutz SIA-Norm 181 (2020) | AY55: S | BG55: Schallschutznachweis Innenlärm
V56: Projektkontrolle
E58: Nur eine Nutzungseinheit: Schallschutznachweis für Innenlärm nicht notwendig
A61: Luftschall | BJ61: Siehe beiliegenden Schallschutznachweis
A63: Situation | AK63: Situation 4 | BI63: Situation 5 | CG63: Situation 6
A64: Trennbauteil | AK64: Wohnungstrenndecke | BI64: Wohnungstrennwand | CG64: Whg.-Trennwand Eingang
A65: Senderaum: | Q65: Bezeichnung | AK65: Schlafzimmer | BI65: Schlafzimmer | CG65: Treppenhaus
Q66: Nr. / Geschoss | AK66: 207 / OG1 | BI66: 207 / OG1 | CG66: 109 / EG
A67: Empfangsraum: | Q67: Bezeichnung | AK67: Schlafzimmer | BI67: Zimmer | CG67: Wohnzimmer
Q68: Nr. / Geschoss | AK68: 107 / EG | BI68: 215 / OG1 | CG68: 105 / EG
A69: Grad der Störung | AK69: mässig | BI69: mässig | CG69: mässig
A70: Lärmempfindlichkeit | AK70: mittel | BI70: mittel | CG70: mittel
A71: Abschlusstüre Ziffer 3.2.2.1 | AN71: R'W + C ≥ | BD71: dB | BI71: 10 | BL71: R'W + C ≥ | CB71: dB | CG71: 10 | CJ71: R'W + C ≥ | CU71: 37 | CZ71: dB
A72: Tieffreq. Emi. nachts Ziffer 3.2.2.2 | AN72: tieffreq. in der Nacht | BI72: 10 | BL72: tieffreq. in der Nacht | CG72: 10 | CJ72: tieffreq. in der Nacht
A73: Massgebende Anforderung | AK73: Di = | AT73: 52 | AZ73: dB | BI73: Di = | BR73: 52 | BX73: dB | CG73: Di = | CP73: 47 | CV73: dB
A74: Trennbauteile | AK74: S [m2] | AS74: R'w [dB] | BA74: C [dB] | BI74: S [m2] | BQ74: R'w [dB] | BY74: C [dB] | CG74: S [m2] | CO74: R'w [dB] | CW74: C [dB]
A75: BT4 Innenwand Beton 20 cm | BI75: 10.2 | BQ75: 57.0 | BY75: -2.0 | CG75: 12.0 | CO75: 57.0 | CW75: -2.0
A76: BT5 Decke 22cm Beton + TSD + UB | AK76: 17.0 | AS76: 58.0 | BA76: -2.0
A77: BT6 Wohnungseingangstüre | CG77: 2.0 | CO77: 42.0 | CW77: -5.0
A83: Sres und (R'w + C)res | AK83: =SUM(AK75:AR82) -> 17.0 | AS83: =IF(AK83>0,ROUND(-10*LOG( (AK75*10^((ROUND(-AS75-BA75,1))/10) +AK76*10^((ROUND(-AS76-BA76,1))/10) +AK77*10^((ROUND(-AS77-BA77,1))/10) +AK78*10^((ROUND(-AS78-BA78,1))/10) +AK79*10^((ROUND(-AS79-BA79,1))/10) +AK80*10^((ROUND(-AS80-BA80,1))/10) +AK81*10^((ROUND(-AS81-BA81,1))/10) +AK82*10^((ROUND(-AS82-BA82,1))/10) )/AK83),1),0) -> 56.0 | BI83: =SUM(BI75:BP82) -> 10.2 | BQ83: =IF(BI83>0,ROUND(-10*LOG( (BI75*10^((ROUND(-BQ75-BY75,1))/10) +BI76*10^((ROUND(-BQ76-BY76,1))/10) +BI77*10^((ROUND(-BQ77-BY77,1))/10) +BI78*10^((ROUND(-BQ78-BY78,1))/10) +BI79*10^((ROUND(-BQ79-BY79,1))/10) +BI80*10^((ROUND(-BQ80-BY80,1))/10) +BI81*10^((ROUND(-BQ81-BY81,1))/10) +BI82*10^((ROUND(-BQ82-BY82,1))/10) )/BI83),1),0) -> 55.0 | CG83: =SUM(CG75:CN82) -> 14.0 | CO83: =IF(CG83>0,ROUND(-10*LOG( (CG75*10^((ROUND(-CO75-CW75,1))/10) +CG76*10^((ROUND(-CO76-CW76,1))/10) +CG77*10^((ROUND(-CO77-CW77,1))/10) +CG78*10^((ROUND(-CO78-CW78,1))/10) +CG79*10^((ROUND(-CO79-CW79,1))/10) +CG80*10^((ROUND(-CO80-CW80,1))/10) +CG81*10^((ROUND(-CO81-CW81,1))/10) +CG82*10^((ROUND(-CO82-CW82,1))/10) )/CG83),1),0) -> 45.1
A84: Volumen Empfangsraum | AK84: V = | AS84: 52.6 | BA84: m3 | BI84: V = | BQ84: 40.3 | BY84: m3 | CG84: V = | CO84: 78.9 | CW84: m3
A85: Projektierungszuschlag Kp | AK85: Kp = | AS85: 2.0 | BA85: dB | BI85: Kp = | BQ85: 2.0 | BY85: dB | CG85: Kp = | CO85: 0.0 | CW85: dB
A86: Ermittelter Schallschutz | AK86: Di,d = | AS86: =IF(AND(AK83>0,AS83>0,AS84>0),ROUND(AS83+10*LOG(AS84/AK83)-4.9-AS85,1),0) -> 54.0 | BB86: dB | BI86: Di,d = | BQ86: =IF(AND(BI83>0,BQ83>0,BQ84>0),ROUND(BQ83+10*LOG(BQ84/BI83)-4.9-BQ85,1),0) -> 54.1 | BZ86: dB | CG86: Di,d = | CO86: =IF(AND(CG83>0,CO83>0,CO84>0),ROUND(CO83+10*LOG(CO84/CG83)-4.9-CO85,1),0) -> 47.7 | CX86: dB
A87: Erfüllt | AS87: =IF(AND(AT73>0,AS86>0), IF(AND(AT73<=AS86,IF($AY$18>0, AND(IF(AS75>0,$AS$22+$BA$22>=$AY$18, IF(AS76>0,$AS$23+$BA$23>=$AY$18, IF(AS77>0,$AS$24+$BA$24>=$AY$18, IF(AS78>0,$AS$25+$BA$25>=$AY$18, IF(AS79>0,$AS$26+$BA$26>=$AY$18, IF(AS80>0,$AS$27+$BA$27>=$AY$18, IF(AS81>0,$AS$28+$BA$28>=$AY$18, IF(AS82>0,$AS$29+$BA$29>=$AY$18,TRUE)))))))), IF(AS76>0,$AS$23+$BA$23>=$AY$18,TRUE), IF(AS77>0,$AS$24+$BA$24>=$AY$18,TRUE), IF(AS78>0,$AS$25+$BA$25>=$AY$18,TRUE), IF(AS79>0,$AS$26+$BA$26>=$AY$18,TRUE), IF(AS80>0,$AS$27+$BA$27>=$AY$18,TRUE), IF(AS81>0,$AS$28+$BA$28>=$AY$18,TRUE), IF(AS82>0,$AS$29+$BA$29>=$AY$18,TRUE)), $AT$20-5<=$AS$30)),"Ja","Nein"),"") -> Ja | BQ87: =IF(AND(BR73>0,BQ86>0), IF(AND(BR73<=BQ86,IF(BW71>0, AND(IF(BQ75>0,BQ75+BY75>=BW71, IF(BQ76>0,BQ76+BY76>=BW71, IF(BQ77>0,BQ77+BY77>=BW71, IF(BQ78>0,BQ78+BY78>=BW71, IF(BQ79>0,BQ79+BY79>=BW71, IF(BQ80>0,BQ80+BY80>=BW71, IF(BQ81>0,BQ81+BY81>=BW71, IF(BQ82>0,BQ82+BY82>=BW71,TRUE)))))))), IF(BQ76>0,BQ76+BY76>=BW71,TRUE), IF(BQ77>0,BQ77+BY77>=BW71,TRUE), IF(BQ78>0,BQ78+BY78>=BW71,TRUE), IF(BQ79>0,BQ79+BY79>=BW71,TRUE), IF(BQ80>0,BQ80+BY80>=BW71,TRUE), IF(BQ81>0,BQ81+BY81>=BW71,TRUE), IF(BQ82>0,BQ82+BY82>=BW71,TRUE)), BR73-5<=BQ83)),"Ja","Nein"),"") -> Ja | CO87: =IF(AND(CP73>0,CO86>0), IF(AND(CP73<=CO86,IF(CU71>0, AND(IF(CO75>0,CO75+CW75>=CU71, IF(CO76>0,CO76+CW76>=CU71, IF(CO77>0,CO77+CW77>=CU71, IF(CO78>0,CO78+CW78>=CU71, IF(CO79>0,CO79+CW79>=CU71, IF(CO80>0,CO80+CW80>=CU71, IF(CO81>0,CO81+CW81>=CU71, IF(CO82>0,CO82+CW82>=CU71,TRUE)))))))), IF(CO76>0,CO76+CW76>=CU71,TRUE), IF(CO77>0,CO77+CW77>=CU71,TRUE), IF(CO78>0,CO78+CW78>=CU71,TRUE), IF(CO79>0,CO79+CW79>=CU71,TRUE), IF(CO80>0,CO80+CW80>=CU71,TRUE), IF(CO81>0,CO81+CW81>=CU71,TRUE), IF(CO82>0,CO82+CW82>=CU71,TRUE)), CP73-5<=CO83)),"Ja","Nein"),"") -> Ja
A89: Trittschall | BJ89: Siehe beiliegenden Schallschutznachweis
A91: Situation | AK91: Situation 4
A92: Trennbauteil | AK92: Wohnungstrenndecke
A93: Senderaum: | Q93: Bezeichnung | AK93: Schlafzimmer
Q94: Nr. / Geschoss | AK94: 207 / OG1
A95: Empfangsraum: | Q95: Bezeichnung | AK95: Schlafzimmer
Q96: Nr. / Geschoss | AK96: 107 / EG
A97: Grad der Störung | AK97: mässig
A98: Lärmempfindlichkeit | AK98: mittel
A99: Spezielle Fälle 3.3.2 ff | AN99: Umbau | AZ99: Balkon | BL99: Umbau | BX99: Balkon | CJ99: Umbau | CV99: Balkon
A100: Massgebende Anforderung | AK100: L' = | AT100: 53 | AZ100: dB | BI100: L' = | BX100: dB | CG100: L' = | CV100: dB
A102: Trennbauteile | AK102: d [cm] | AQ102: L'n,w | AW102: DLW | BC102: CI | BI102: d [cm] | BO102: L'n,w | BU102: DLW | CA102: CI | CG102: d [cm] | CM102: L'n,w | CS102: DLW | CY102: CI
A103: BT5 Decke 22 cm Beton | AK103: 22.0 | AQ103: 69.0 | AW103: ----- | BC103: 2.0 | BU103: ----- | CS103: -----
A104: Trittschalldämmung + UB | AW104: 23.0
A110: Wert für gesamten Aufbau | AK110: L'n,w + CI = | AW110: =ROUND(SUM(AQ103:AV109) + IF(BC103>0, BC103,0) + IF(BC104>0, BC104,0) + IF(BC105>0, BC105,0) + IF(BC106>0, BC106,0) + IF(BC107>0, BC107,0) + IF(BC108>0, BC108,0) + IF(BC109>0, BC109,0) - SUM(AW104:BB109),1) -> 48.0 | BD110: dB | BI110: L'n,w + CI = | CB110: dB | CG110: L'n,w + CI = | CZ110: dB
A111: Volumen Empfangsraum | AK111: V = | AS111: 52.0 | BB111: m3 | BI111: V = | BZ111: m3 | CG111: V = | CX111: m3
A112: Projektierungszuschlag Kp | AK112: Kp = | AS112: 5.0 | BB112: dB | BI112: Kp = | BQ112: 5.0 | BZ112: dB | CG112: Kp = | CO112: 5.0 | CX112: dB
A113: Ermittelter Schallpegel | AK113: L'd = | AS113: =IF(AND(AW110>0,AS111>0),ROUND((AW110-10*LOG(AS111)+14.9+AS112),1),0) -> 50.7 | BB113: dB | BI113: L'd = | BZ113: dB | CG113: L'd = | CX113: dB
A114: Erfüllt | AS114: =IF(AND(AT100>0,AW110>0,AS111>0),IF(AT100<AS113,"Nein","Ja"),"") -> Ja | BQ114: =IF(AND(BR100>0,BU110>0,BQ111>0),IF(BR100<BQ113,"Nein","Ja"),"") ->  | CO114: =IF(AND(CP100>0,CS110>0,CO111>0),IF(CP100<CO113,"Nein","Ja"),"") -> 
A115: Formular S Seite | O115: 2 | R115: von | V115: 3 | AT115: Formular S | CF115: Version vom 30. November 2020
